Cogmind - Beta 12 @@@ ROGUE MODE // 2023.06.04 @ 13:14:56 Player: LustLizard Result: Self-destructed Performance ------------- Evolutions (0) 0 Regions Visited (4) 800 Robots Destroyed (30) 150 Value Destroyed (602) 602 Prototype IDs (3) 60 Alien Tech Used (0) 0 Bonus (324) 324 TOTAL SCORE: 1936 Bonus ------- Follower Combat Kills 60 Aligned with FarCom 300 Friendly Fire -36 Cogmind --------- Core Integrity 31/250 Matter 295/300 Energy 100/100 System Corruption 6% Temperature Warm (181) Movement Rolling (110) Ox2 Location -9/Mines Parts ------- > --- POWER (1) -------- (None) > --- PROPULSION (2) --- Wheel > --- UTILITY (2) ------ Large Storage Unit > --- WEAPON (2) ------- Spread Laser Spread Laser > --- INVENTORY (15) --- Ion Engine Light Ion Engine Aluminum Leg Aluminum Leg Flying Fortress v7 Heat Sink Heat Sink Large Storage Unit Experimental Sensor Array Thief Drone Bay (3/3) Particle Gun Mining Laser Peak State ------------ > --- POWER ------------ Ion Engine > --- PROPULSION ------- Light Treads Wheel > --- UTILITY ---------- Heat Sink Large Storage Unit > --- WEAPON ----------- YOLO Cannon > --- INVENTORY -------- Ion Engine Aluminum Leg Aluminum Leg Armored Wheel Heat Sink Heat Sink Large Storage Unit Experimental Sensor Array Thief Drone Bay Medium Laser Particle Gun Spread Laser Spread Laser Mining Laser [Rating: 28] Favorites ----------- Power Ion Engine Engine Ion Engine Propulsion Wheel Treads Light Treads Wheel Wheel Utility Heat Sink Device Heat Sink Storage Large Storage Unit Weapon Medium Laser Energy Gun Medium Laser Energy Cannon YOLO Cannon Ballistic Gun Light Assault Rifle Build | -11 -10 -10 -10 -9 ------- Run | Jun Mat Min Exi Min Slots Evolved . | . . . . . Power . | . . . . . Propulsion . | . . . . . Utility . | . . . . . Weapon . | . . . . . Parts Attached 29 | 6 7 9 5 2 Power 2 | 1 . 1 . . Engine 2 | 1 . 1 . . Core . | . . . . . Reactor . | . . . . . Propulsion 6 | 2 1 2 . 1 Treads 2 | 1 . 1 . . Leg . | . . . . . Wheel 4 | 1 1 1 . 1 Hover . | . . . . . Flight . | . . . . . Utility 6 | 1 2 3 . . Device 4 | . 1 3 . . Storage 2 | 1 1 . . . Processor . | . . . . . Hackware . | . . . . . Protection . | . . . . . Artifact . | . . . . . Weapon 15 | 2 4 3 5 1 Energy Gun 13 | 1 4 3 4 1 Energy Cannon 1 | . . . 1 . Ballistic Gun 1 | 1 . . . . Ballistic Cannon . | . . . . . Launcher . | . . . . . Special Weapon . | . . . . . Impact Weapon . | . . . . . Slashing Weapon . | . . . . . Piercing Weapon . | . . . . . Special Melee Weapon . | . . . . . Unidentified Prototypes 3 | . . 1 2 . Parts Lost 6 | . . 2 . 4 Power 2 | . . 1 . 1 Propulsion 2 | . . . . 2 Utility 1 | . . . . 1 Weapon 1 | . . 1 . . Highest Loss Streak 3 | . . 1 . 3 To Critical Strikes . | . . . . . Average Slot Usage (%) 98 | . 97 99 98 99 Engine 13 | . 14 13 14 14 Treads 12 | . 14 14 14 . Wheel 15 | . 14 14 14 26 Device 13 | . 12 14 14 14 Storage 14 | . 14 14 14 14 Energy Gun 27 | . 25 27 26 28 Naked Turns . | . . . . . Heaviest Build 44 | 13 31 30 44 32 Greatest Support 22 | 10 10 10 10 22 Greatest Overweight (x) 4 | 1 3 2 4 1 Average Overweight (x) 1 | . 1 2 2 1 Largest Inventory Capacity 15 | 8 15 15 15 15 Average Capacity 13 | 6 10 15 15 15 Most Carried 15 | 7 15 15 15 15 Average Carried 12 | 5 9 14 14 14 Final Capacity 15 | 8 15 15 15 15 Final Carried 15 | 6 15 14 15 15 Class Distribution -------------------- 100% | Mutant Dominant Class ---------------- Mutant | -10/Materials Mutant | -10/Mines Mutant | -10/Exiles Mutant | -9/Mines Resources | -11 -10 -10 -10 -9 ----------- Run | Jun Mat Min Exi Min Matter Collected 465 | 178 152 70 . 65 Remotely . | . . . . . Salvage Created 814 | . 222 516 . 76 Parts 45 | . 14 20 . 11 Haulers Intercepted . | . . . . . Recyclers Shooed . | . . . . . Parts Field Recycled . | . . . . . Retrieved Matter . | . . . . . Parts Self-Destructed . | . . . . . Prevented . | . . . . . Kills | -11 -10 -10 -10 -9 ------- Run | Jun Mat Min Exi Min Combat Hostiles Destroyed 28 | . 9 10 . 9 Guns 26 | . 9 8 . 9 Classes Destroyed 5 | . 2 2 . 1 Tunneler 2 | . . 2 . . Recycler 2 | . . 2 . . Swarmer 15 | . 5 3 . 7 Grunt 11 | . 4 7 . . Assembled 2 | . . . . 2 Best Kill Streak 6 | . 6 4 . 3 Combat Bots Only 6 | . 6 3 . 3 Max Kills in Single Turn 2 | . 1 1 . 2 Gunslinging . | . . . . . Exploded . | . . . . . Melee . | . . . . . Uniques/NPCs Destroyed . | . . . . . Combat | -11 -10 -10 -10 -9 -------- Run | Jun Mat Min Exi Min Damage Taken 1230 | . 275 589 . 366 Core 219 | . 67 94 . 58 Absorbed by Shields . | . . . . . Core Remaining (%) 100 | 100 . . . . Volleys Fired 93 | . 28 51 . 14 Largest 2 | . 2 2 . 2 Hottest 130 | . 115 100 . 130 Shots Fired 186 | . 56 102 . 28 Gun 186 | . 56 102 . 28 Cannon . | . . . . . Launcher . | . . . . . Special . | . . . . . Kinetic . | . . . . . Thermal 186 | . 56 102 . 28 Explosive . | . . . . . Electromagnetic . | . . . . . Robot Hit Streak 15 | . 8 15 . 5 Robot Miss Streak 7 | . 3 4 . 7 Penetration Max . | . . . . . Secondary Targets 4 | . 1 1 . 2 Max Gunslinging Chain 1 | . 1 1 . 1 Shots Hit Robots 141 | . 39 75 . 27 Core Hits 79 | . 16 27 . 36 Critical Kills . | . . . . . Critical Parts Destroyed . | . . . . . Critical Strikes 9 | . 1 8 . . Burn 9 | . 1 8 . . Melee Attacks . | . . . . . Impact . | . . . . . Slashing . | . . . . . Piercing . | . . . . . Sneak Attacks . | . . . . . Combat Hostiles . | . . . . . Follow-up Attacks . | . . . . . Damage Inflicted 1783 | . 516 957 . 310 Guns 1783 | . 516 957 . 310 Cannons . | . . . . . Explosions . | . . . . . Melee . | . . . . . Ramming . | . . . . . Kinetic . | . . . . . Thermal 1783 | . 516 957 . 310 Explosive . | . . . . . Electromagnetic . | . . . . . Impact . | . . . . . Slashing . | . . . . . Piercing . | . . . . . Highest Corruption 6 | . . . . 6 Average Corruption 6 | . . . . 6 Corruption Purged . | . . . . . Corruption Blocked . | . . . . . Overload Shots . | . . . . . Overflow Damage . | . . . . . Projectiles . | . . . . . Explosions . | . . . . . Melee . | . . . . . Knockbacks . | . . . . . Impact . | . . . . . Kinetic . | . . . . . Secondary . | . . . . . Self-Inflicted Damage . | . . . . . Shots . | . . . . . Rammed . | . . . . . Targets Rammed . | . . . . . Kicked . | . . . . . Crushed . | . . . . . Highest Temperature 181 | . 117 129 . 181 Average Temperature 51 | . 45 47 . 75 Received Heat Transfer 405 | . 120 285 . . Siege Activations . | . . . . . Robots Corrupted . | . . . . . Combat Hostiles . | . . . . . Parts Fried . | . . . . . Impact Corruptions . | . . . . . Robots Melted 2 | . . 2 . . Combat Hostiles 2 | . . 2 . . Parts Melted 9 | . 2 7 . . Heat Transferred 5270 | . 1476 3404 . 390 Parts Sabotaged . | . . . . . Parts Stolen . | . . . . . Parts Stripped . | . . . . . Power Chain Reactions . | . . . . . Missiles Intercepted . | . . . . . Alert | -11 -10 -10 -10 -9 ------- Run | Jun Mat Min Exi Min Peak Influence 214 | . 214 135 . 150 Initial 22 | . . 22 . . Average 81 | . 92 67 . 118 Maximum Alert Level 1 | . 1 . . . Low Security (%) 98 | 100 94 100 . 100 Level 1 1 | . 5 . . . Level 2 . | . . . . . Level 3 . | . . . . . Level 4 . | . . . . . Level 5 . | . . . . . High Security . | . . . . . Max Security . | . . . . . Squads Dispatched . | . . . . . Investigation . | . . . . . Extermination . | . . . . . Reinforcement . | . . . . . Assault . | . . . . . Garrison . | . . . . . Intercept . | . . . . . Searches Triggered . | . . . . . Construction Impeded . | . . . . . Haulers Reinforced . | . . . . . Active Scanning Responses . | . . . . . Cargo Convoy Interrupts . | . . . . . Stealth | -11 -10 -10 -10 -9 --------- Run | Jun Mat Min Exi Min Distress Signals 2 | . 1 . . 1 Communications Jammed . | . . . . . Distress Signals . | . . . . . Times Spotted 40 | . 13 12 . 15 Peak Tracking Total 8 | . 7 3 . 8 Tactical Retreats 2 | . 2 . . . Traps | -11 -10 -10 -10 -9 ------- Run | Jun Mat Min Exi Min Traps Triggered . | . . . . . Indirectly . | . . . . . Trap Hack Attempts . | . . . . . Triggered . | . . . . . Disarmed . | . . . . . Reprogrammed . | . . . . . Reused . | . . . . . Traps Extracted . | . . . . . Installed . | . . . . . Triggered . | . . . . . Machines | -11 -10 -10 -10 -9 ---------- Run | Jun Mat Min Exi Min Machines Disabled . | . . . . . Max in Single Turn . | . . . . . Machines Repaired . | . . . . . Machines Sabotaged . | . . . . . Overloaded Fab Kills . | . . . . . Hacking | -11 -10 -10 -10 -9 --------- Run | Jun Mat Min Exi Min Machines Accessed 7 | . 5 2 . . Terminals 6 | . 5 1 . . Fabricators . | . . . . . Repair Stations . | . . . . . Recycling Units . | . . . . . Scanalyzers . | . . . . . Garrison Access . | . . . . . Total Hacks 20 | . 17 3 . . Successful 9 | . 7 2 . . Failed 10 | . 9 1 . . Catastrophic 1 | . 1 . . . Database Lockouts 1 | . 1 . . . Manual 20 | . 17 2 1 . Terminals 19 | . 17 2 . . Fabricators . | . . . . . Repair Stations . | . . . . . Recycling Units . | . . . . . Scanalyzers . | . . . . . Garrison Access . | . . . . . Terminal Hacks 3 | . 1 2 . . Robot Analysis 1 | . 1 . . . Open Door 1 | . . 1 . . Unreport Threat 1 | . . 1 . . Fabricator Hacks . | . . . . . Repair Station Hacks . | . . . . . Recycling Unit Hacks . | . . . . . Scanalyzer . | . . . . . Garrison Access Hacks . | . . . . . Unauthorized Hacks 6 | . 6 . . . Terminals 6 | . 6 . . . Assimilate 1 | . 1 . . . Botnet 5 | . 5 . . . Fabricators . | . . . . . Repair Stations . | . . . . . Recycling Units . | . . . . . Scanalyzers . | . . . . . Garrison Access . | . . . . . Data Cores Recovered . | . . . . . Used . | . . . . . Hacking Detections 5 | . 4 1 . . Full Trace Events . | . . . . . Feedback Events . | . . . . . Feedback Blocked . | . . . . . Robot Schematics Acquired . | . . . . . Robots Built . | . . . . . Authchips . | . . . . . Time . | . . . . . Total Robot Build Rating . | . . . . . Part Schematics Acquired . | . . . . . Parts Built . | . . . . . Authchips . | . . . . . Time . | . . . . . Total Part Build Rating . | . . . . . Parts Repaired . | . . . . . Time . | . . . . . Parts Recycled . | . . . . . Recycled Matter . | . . . . . Retrieved Matter . | . . . . . Retrieved Components . | . . . . . Parts Scanalyzed . | . . . . . Part Schematics Acquired . | . . . . . Parts Damaged . | . . . . . Bothacking | -11 -10 -10 -10 -9 ------------ Run | Jun Mat Min Exi Min Used RIF Installer . | . . . . . Robots Hacked . | . . . . . Non-combat . | . . . . . Combat . | . . . . . Robot Hacks Applied . | . . . . . Relay Couplers Released . | . . . . . Fabnet Peak Effective % . | . . . . . Robots Rewired . | . . . . . Allies Hacked . | . . . . . Hacks Repelled . | . . . . . Allies | -11 -10 -10 -10 -9 -------- Run | Jun Mat Min Exi Min Total Allies 1 | . . 1 . . Largest Group 1 | . . 1 1 . Highest-Rated Group 31 | . . 31 31 . Highest-Rated Ally 31 | . . 31 31 . Total Orders . | . . . . . Ally Attacks 3 | . . 3 . . Total Damage 64 | . . 64 . . Kills 2 | . . 2 . . Allies Corrupted . | . . . . . Allies Melted . | . . . . . Intel | -11 -10 -10 -10 -9 ------- Run | Jun Mat Min Exi Min Robot Analysis Total 1 | . 1 . . . Derelict Logs Recovered 2 | . . 2 . . Drone Launches . | . . . . . Drone Recoveries . | . . . . . Exploration | -11 -10 -10 -10 -9 ------------- Run | Jun Mat Min Exi Min Turns Passed 2158 | 44 668 904 291 251 Spaces Moved 1598 | 36 519 651 240 152 Core 10 | 10 . . . . Treads . | . . . . . Legs . | . . . . . Wheels 1588 | 26 519 651 240 152 Hover . | . . . . . Flight . | . . . . . Fastest Speed 50 | 50 95 110 110 100 Average Speed 106 | 79 100 110 117 100 Slowest Speed 140 | 95 125 110 140 100 Overloaded Moves . | . . . . . Propulsion Burnouts . | . . . . . Robots Hopped . | . . . . . Cave-ins Triggered . | . . . . . Exploration Rate (%) 52 | 3 62 98 62 37 Regions Visited 4 Branch Regions 3 Pre-discovered Areas 1 | . . 1 . . Known Exits Taken . | . . . . . Unknown Exits Taken 4 | 1 1 1 1 . Scrap Searched 1 | . . 1 . . Spaces Dug . | . . . . . Terrain Destroyed . | . . . . . Melee . | . . . . . Projectile . | . . . . . AOE . | . . . . . Terrain Rammed . | . . . . . Walls Destroyed . | . . . . . Machines Disabled . | . . . . . Actions | -11 -10 -10 -10 -9 --------- Run | Jun Mat Min Exi Min Total 1874 | 48 613 740 251 222 Wait 102 | . 33 16 . 53 Move 1594 | 35 518 650 239 152 Hop . | . . . . . Pick Up 31 | 7 16 6 1 1 Fast Attach 13 | 5 4 1 3 . Attach 11 | 1 2 5 2 1 Detach . | . . . . . Swap 5 | . 1 3 . 1 Drop 25 | . 11 8 6 . Fire 93 | . 28 51 . 14 Melee . | . . . . . Ram . | . . . . . Kick . | . . . . . Crush . | . . . . . Escape Stasis . | . . . . . Rewire . | . . . . . Trap . | . . . . . Miscellaneous . | . . . . . Route ------- -11/Junkyard -10/Materials (discovered 2 exits: *Min x2) -10/Mines (discovered 3 exits: [*Mat x2] / *Exi) -10/Exiles (discovered 2 exits: [*Min x2]) -9/Mines (discovered 1 exit: [*Mat]) History --------- Turn | Location | Event 9 | -11/Junkyard | Discovered new exit (range 14) 45 | -11/Junkyard | Entered Materials 146 | -10/Materials | Central database locked down 262 | -10/Materials | Discovered new exit (range 6) 313 | -10/Materials | Build established: Mutant 351 | -10/Materials | Discovered new exit (range 16) 713 | -10/Materials | Entered Mines 747 | -10/Mines | Learned location of Zion (-6) 798 | -10/Mines | Discovered new exit (range 5) 915 | -10/Mines | Found a damaged Exp. Sensor Array with a note attached 919 | -10/Mines | Found Prototype Device 1107 | -10/Mines | Found the Drone Emporium 1112 | -10/Mines | Learned 2 Materials zone layouts 1116 | -10/Mines | Found Prototype Device 1116 | -10/Mines | Identified Thief Drone Bay 1207 | -10/Mines | Core integrity fell below 50% 1297 | -10/Mines | Escorted by a lone wolf Derelict 1558 | -10/Mines | Discovered new exit (range 5) 1609 | -10/Mines | Deemed a non-threat by the Exiles lab entrance 1610 | -10/Mines | Discovered new exit (range 5) 1617 | -10/Mines | Entered Exiles 1617 | -10/Exiles | Accompanied by 1 ally 1636 | -10/Exiles | Discovered new exit (range 14) 1652 | -10/Exiles | Met 8R-AWN 1669 | -10/Exiles | Met EX-HEX 1710 | -10/Exiles | Met EX-BIN 1722 | -10/Exiles | Aligned with FarCom system 1723 | -10/Exiles | Given EX-Vault access code 1749 | -10/Exiles | Opened EX-Vault 1759 | -10/Exiles | Found Prototype Energy Cannon 1759 | -10/Exiles | Identified YOLO Cannon 1770 | -10/Exiles | Found Prototype Energy Gun 1770 | -10/Exiles | Identified AWS/Thermal 1779 | -10/Exiles | Found Prototype Flight Unit 1813 | -10/Exiles | Warned to stay clear of 0b10 Research branches 1848 | -10/Exiles | Met EX-DEC 1890 | -10/Exiles | Discovered new exit (range 14) 1908 | -10/Exiles | Left Exiles lab with Flying Fortress v7 1908 | -10/Exiles | Entered Mines 1988 | -9/Mines | Discovered new exit (range 6) 2126 | -9/Mines | Assembled infested the area 2131 | -9/Mines | Assisted by a Guerilla fighting off Assembled 2153 | -9/Mines | Core integrity fell below 20% 2159 | -9/Mines | Self-destructed Last Messages --------------- I've been tracking a group of Assembled to figure out where they're coming from, and they're closing on this area, come on!" 02133_ EG-7AI(h): "I'll hold them off! Go on ahead or try to find another way!" 02133_ HV Slug penetrates as-05889. 02133_ as-05889 knocked back. 02133_ HV Slug penetrates as-05889. 02135_ HV Slug penetrates Wall. 02135_ HV Slug penetrates Earth. 02140_ HV Slug penetrates Wall. 02141_ EG-7AI(h) system corrupted by crushing effect. 02155_ as-57934 destroyed. 02156_ Knocked back. 02156_ as-84942 destroyed. 02156_ as-77889 destroyed. 02156_ Heat Sink destroyed. 02158_ Arm. Wheel destroyed. 02158_ Ion Engine destroyed. 02158_ System corrupted by crushing effect (+1). 02158_ System corrupted by crushing effect (+5). Map ----- +----------------------------------------------------+ | #### #??########?????????????????????????????????? | | ???# #??# #?????????????????????????????????? | | ???# #### #?????????????????????????????????? | | ???#= = #?????????????????????????????????? | | ?######## #?????????????????????????????????? | | ## ##??# #?????????????????????????????????? | | # ##### ####????????????????????? #?????????? | | #???????????????????? ?????????? | | # ## #???????????????????# #????????? | | ## ## ????????????????## #????????? | | #### ########???????????????# ##???????? | | #???# #??????????????????????# #???????? | | #????# #?????????????????????## ##??????? | | #?????# #????????????????????## #??????? | | ??????# #???????????????????## ???????? | | ??????# #???????????????????# ????????? | | #####?# ########????????????# #????????? | | #?# #????????????# #????????? | | """ #?# ###### #????????????# ####?????? | | """ #?# #????# #????????????# #"######? | | """ #?# #????# #????????????# % ?? | | """ #?# #????# #?????????????# #??????? | | #?# #????# #?????????###???## ##??????? | | """ ### #????# #????????## ##???## ##???????? | | """ #????# #????????# ##??## ##????????? | | """ #####????# ######???#@a% #### ##?????????? | | """ #????????# #??## a%a ##??????????? | | #????????###### #?## % a ##???????????? | | #?????????????# ### a #????????????? | | #?????????????# #????????????? | | #####?????????????#### ##### ##????????????? | | ?????????????????????######???######?????????????? | | ?????????????????????????????????????????????????? | | ?????????????????????????????????????????????????? | | ?????????????????????????????????????????????????? | | | | | | | | | | | | | | | | | | | | | | | | | | | | | | | +----------------------------------------------------+ Best States ------------- Heat Dissipation 35 Energy Generation 10 Energy Capacity 250 Matter Stores 300 Matter Capacity 300 Sight Range 16 Terrain Scan Density 10 Evasion (%) 50 Item Schematics ----------------- None Robot Schematics ------------------ None Fabricated ------------ Nothing Alien Tech Used ----------------- None Achievements -------------- None Challenges ------------ None Game ------ Seed SignalBackupStorm Manual? 0 Play Time 00:25:41 Cumulative 60.7 hours Start 2023.06.04 @ 12:39:31 End 2023.06.04 @ 13:14:56 Sessions 1 Manual Loads 0 Difficulty Rogue Special Mode None Game No. 53 Rogue 53 Adventurer 0 Explorer 0 Win Type - Total 0 Types 0/0/0/0/0/0/0/0/0 Lore% 34 Gallery% 40 Achievement% 32 Wizard Run 0 Options --------- ASCII 0 Keyboard 0 Movement Numpad Keybinds 0 Fullscreen 1 Font 18/SmallcapsGlow Map View 76x50 Tactical HUD 1 Map Filters NONE Filters NONE Steam 1 RUN: be3f6911-8978-4704-bbcc-7b41a0f43897